Cogmind - Beta 16 @@@ ROGUE MODE // 2025.11.12 @ 22:27:32 Player: WarMechanic Result: Destroyed by D-53 Grenadier with Mini Grenade Launcher Performance ------------- Evolutions (0) 0 Regions Visited (2) 400 Robots Destroyed (35) 175 Value Destroyed (653) 653 Prototype IDs (0) 0 Alien Tech Used (0) 0 Bonus (60) 60 TOTAL SCORE: 1288 Bonus ------- Follower Combat Kills 60 Cogmind --------- Core Integrity 0/250 Matter 245/300 Energy 149/150 System Corruption 0% Temperature Cool (24) Movement Core (1550) Ox30 Location -10/Mines Parts ------- > --- POWER (1) -------- Light Angular Momentum Engine > --- PROPULSION (2) --- (None) > --- UTILITY (2) ------ Huge Storage Unit Structural Scanner > --- WEAPON (2) ------- Small Laser > --- INVENTORY (25) --- Ion Engine Ion Engine Ion Engine Light Treads Compact Wheel Heat Sink Huge Storage Unit Structural Scanner Seismic Detector Seismic Detector Light Armor Plating Hacking Suite Small Laser Small Laser Small Laser Beam Cannon Assault Rifle Assault Rifle Datajack Mining Laser Mining Laser Signal Generator Peak State ------------ > --- POWER ------------ Light Angular Momentum Engine > --- PROPULSION ------- Light Treads Compact Wheel > --- UTILITY ---------- Huge Storage Unit Structural Scanner > --- WEAPON ----------- Small Laser Small Laser > --- INVENTORY -------- Ion Engine Ion Engine Ion Engine Ion Engine Ion Engine Light Treads Compact Wheel Heat Sink Huge Storage Unit Structural Scanner Seismic Detector Seismic Detector Light Armor Plating Hacking Suite Small Laser Small Laser Small Laser Small Laser Beam Cannon Assault Rifle Assault Rifle Datajack Mining Laser Mining Laser Signal Generator [Rating: 14] Favorites ----------- Power Ion Engine Engine Ion Engine Propulsion Compact Wheel Treads Light Treads Wheel Compact Wheel Utility Structural Scanner Device Structural Scanner Storage Huge Storage Unit Weapon Small Laser Energy Gun Small Laser Energy Cannon Beam Cannon Ballistic Gun Assault Rifle Launcher Grenade Launcher Special Melee Weapon Datajack Build | -11 -10 -10 ------- Run | Yrd Mat Min Slots Evolved . | . . . Power . | . . . Propulsion . | . . . Utility . | . . . Weapon . | . . . Parts Attached 27 | 7 14 6 Power 6 | 1 4 1 Engine 6 | 1 4 1 Core . | . . . Reactor . | . . . Propulsion 6 | 2 3 1 Treads 2 | 1 1 . Leg . | . . . Wheel 4 | 1 2 1 Hover . | . . . Flight . | . . . Utility 5 | 2 3 . Device 2 | 1 1 . Storage 3 | 1 2 . Processor . | . . . Hackware . | . . . Protection . | . . . Artifact . | . . . Weapon 10 | 2 4 4 Energy Gun 4 | 1 1 2 Energy Cannon 1 | . 1 . Ballistic Gun 2 | 1 1 . Ballistic Cannon . | . . . Launcher 2 | . 1 1 Special Weapon . | . . . Impact Weapon . | . . . Slashing Weapon . | . . . Piercing Weapon . | . . . Special Melee Weapon 1 | . . 1 Unidentified Prototypes . | . . . Parts Lost 8 | . 4 4 Power 1 | . 1 . Propulsion 4 | . 2 2 Utility . | . . . Weapon 3 | . 1 2 Highest Loss Streak 4 | . 1 4 To Critical Strikes . | . . . Average Backups 13 | 4 12 22 Power 1 | . 1 3 Propulsion 2 | 1 2 2 Utility 3 | . 3 7 Weapon 4 | 1 4 9 Tool/Special . | . . . Unused Backups 17 | . 2 15 Power 4 | . . 4 Propulsion 1 | . . 1 Utility 8 | . 1 7 Weapon 4 | . 1 3 Tool/Special . | . . . Average Slot Usage (%) 95 | . 94 100 Engine 13 | . 13 14 Treads 12 | . 11 14 Wheel 12 | . 12 14 Device 14 | . 14 14 Storage 14 | . 14 14 Energy Gun 9 | . 6 17 Energy Cannon 6 | . 7 4 Ballistic Gun 6 | . 8 1 Launcher 4 | . 5 . Peak Build Rating 14 | 7 9 14 Average Rating 8 | 6 7 12 On Entrance 5 | . 7 9 Avg Prop Armor Cover (%) 12 | 13 12 14 Naked Turns . | . . . Heaviest Build 92 | 12 91 92 Greatest Support 16 | 16 16 16 Greatest Overweight (x) 30 | 3 10 30 Average Overweight (x) 2 | . 2 5 Largest Inventory Capacity 25 | 8 25 25 Average Capacity 17 | 7 16 25 Most Carried 25 | 6 23 25 Average Carried 14 | 4 12 23 Final Capacity 25 | 8 25 25 Final Carried 23 | 6 23 22 Class Distribution -------------------- 86% | Mutant 13% | Scavenger-Mutant Dominant Class ---------------- Mutant | -10/Materials Scavenger-Mutant | -10/Mines Resources | -11 -10 -10 ----------- Run | Yrd Mat Min Matter Collected 684 | 306 328 50 Remotely . | . . . Salvage Created 840 | 163 553 124 Parts 78 | 19 52 7 Haulers Intercepted . | . . . Recyclers Shooed 1 | . . 1 Parts Field Recycled . | . . . Retrieved Matter . | . . . Parts Self-Destructed . | . . . Prevented . | . . . Parts Restored . | . . . Kills | -11 -10 -10 ------- Run | Yrd Mat Min Combat Hostiles Destroyed 29 | . 18 11 Guns 5 | . 4 1 Cannons 8 | . 8 . AOE 16 | . 6 10 Classes Destroyed 9 | 2 6 1 Worker 1 | . 1 . Builder 3 | . 3 . Tunneler 7 | 5 1 1 Recycler 2 | 1 . 1 Operator 2 | . 2 . Watcher 1 | . 1 . Swarmer 6 | . 6 . Grunt 13 | . 12 1 Assembled 10 | . . 10 Best Kill Streak 10 | 5 6 10 Combat Bots Only 10 | . 3 10 Max Kills in Single Turn 7 | 2 3 7 Gunslinging . | . . . Exploded 7 | . 2 7 Melee . | . . . Uniques/NPCs Destroyed . | . . . Combat | -11 -10 -10 -------- Run | Yrd Mat Min Hostile Shots Fired 103 | . 80 23 Missed 25 | . 20 5 Hits 78 | . 60 18 Projectile 78 | . 60 18 AOE 9 | . . 9 Critical Strikes 1 | . 1 . Damage Taken 1255 | . 737 518 Core 276 | . 131 145 Absorbed by Shields . | . . . Core Remaining (%) 100 | 100 . . Volleys Fired 115 | 12 84 19 Largest 2 | 2 2 2 Hottest 80 | 60 80 80 Shots Fired 163 | 24 112 27 Gun 89 | 24 49 16 Cannon 57 | . 51 6 Launcher 17 | . 12 5 Special . | . . . Kinetic 40 | 12 28 . Thermal 106 | 12 72 22 Explosive 17 | . 12 5 Electromagnetic . | . . . Robot Hit Streak 11 | 11 11 11 Robot Miss Streak 3 | 3 2 1 Penetration Max . | . . . Secondary Targets 1 | . 1 . Max Gunslinging Chain 1 | . 1 . Shots Hit Robots 98 | 15 61 22 Core Hits 85 | 7 43 35 Critical Kills 1 | . 1 . Critical Parts Destroyed . | . . . Critical Strikes 1 | . 1 . Destroy 1 | . 1 . Melee Attacks 1 | . . 1 Impact . | . . . Slashing . | . . . Piercing . | . . . Sneak Attacks 1 | . . 1 Combat Hostiles . | . . . Follow-up Attacks . | . . . Damage Inflicted 2330 | 178 1482 670 Guns 710 | 178 381 151 Cannons 558 | . 506 52 Explosions 1062 | . 595 467 Melee . | . . . Ramming . | . . . Kinetic 299 | 71 228 . Thermal 969 | 107 659 203 Explosive 1062 | . 595 467 Electromagnetic . | . . . Impact . | . . . Slashing . | . . . Piercing . | . . . Highest Corruption . | . . . Average Corruption . | . . . Corruption Purged . | . . . Corruption Blocked . | . . . Overload Shots . | . . . Overflow Damage 16 | . 16 . Projectiles 16 | . 16 . Explosions . | . . . Melee . | . . . Knockbacks . | . . . Impact . | . . . Kinetic . | . . . Secondary . | . . . Self-Inflicted Damage 37 | . 37 . Shots 2 | . 2 . Rammed . | . . . Targets Rammed . | . . . Kicked . | . . . Crushed . | . . . Highest Temperature 392 | . 392 175 Average Temperature 92 | . 98 70 Received Heat Transfer 366 | . 297 69 Siege Activations . | . . . Martial Activations . | . . . Shielding Activations . | . . . Robots Disrupted . | . . . Combat Hostiles . | . . . Robots Corrupted . | . . . Combat Hostiles . | . . . Parts Fried . | . . . Impact Corruptions . | . . . Robots Melted . | . . . Combat Hostiles . | . . . Parts Melted 1 | . 1 . Heat Transferred 2134 | 250 1423 461 Parts Sabotaged . | . . . Parts Stolen . | . . . Parts Stripped . | . . . Power Chain Reactions . | . . . Alert | -11 -10 -10 ------- Run | Yrd Mat Min Maximum Alert Level 1 | . 1 . Low Security (%) 99 | 100 98 100 Level 1 . | . 1 . Level 2 . | . . . Level 3 . | . . . Level 4 . | . . . Level 5 . | . . . High Security . | . . . Max Security . | . . . Peak Influence 204 | 10 204 55 Initial 55 | . . 55 Average 85 | 2 115 25 Influence Increases 699 | 30 561 108 Destroy 0b10 Robot/C 420 | . 360 60 Destroy 0b10 Robot/NC 80 | 30 40 10 Destroy Leader 82 | . 72 10 Allied During Kill 15 | . . 15 Successful Hack 12 | . 12 . Destroy Structure 75 | . 62 13 Lose Combat Pursuer 15 | . 15 . Influence Decreases 699 | 30 418 251 Entered New Map 88 | . . 88 Time Decay 540 | 30 378 132 Lost Part 44 | . 40 4 Lost Ally 27 | . . 27 Squads Dispatched 4 | . 3 1 Investigation 1 | . 1 . Extermination . | . . . Reinforcement 2 | . 2 . Assault 1 | . . 1 Garrison . | . . . Intercept . | . . . Searches Triggered . | . . . Construction Impeded . | . . . Haulers Reinforced . | . . . Active Scanning Responses . | . . . Cargo Convoy Interrupts . | . . . Stealth | -11 -10 -10 --------- Run | Yrd Mat Min Distress Signals 2 | . 2 . Communications Jammed . | . . . Distress Signals . | . . . Times Spotted 52 | . 28 24 Peak Tracking Total 20 | . 5 20 Tactical Retreats 1 | . 1 . Traps | -11 -10 -10 ------- Run | Yrd Mat Min Traps Triggered 1 | . 1 . Indirectly . | . . . Trap Hack Attempts . | . . . Triggered . | . . . Disarmed . | . . . Reprogrammed . | . . . Reused . | . . . Traps Extracted . | . . . Installed . | . . . Triggered . | . . . Machines | -11 -10 -10 ---------- Run | Yrd Mat Min Machines Disabled . | . . . Max in Single Turn . | . . . Machines Repaired . | . . . Machines Dismantled . | . . . Machines Sabotaged . | . . . Overloaded Fab Kills . | . . . Hacking | -11 -10 -10 --------- Run | Yrd Mat Min Machines Accessed 3 | . 3 . Terminals 3 | . 3 . Fabricators . | . . . Repair Stations . | . . . Recycling Units . | . . . Scanalyzers . | . . . Garrison Access . | . . . Total Hacks 4 | . 4 . Successful 3 | . 3 . Failed 1 | . 1 . Catastrophic 1 | . 1 . Database Lockouts . | . . . Manual 3 | . 3 . Terminals 4 | . 4 . Fabricators . | . . . Repair Stations . | . . . Recycling Units . | . . . Scanalyzers . | . . . Garrison Access . | . . . Terminal Hacks 2 | . 2 . Terminal Index 1 | . 1 . Locate Traps 1 | . 1 . Fabricator Hacks . | . . . Repair Station Hacks . | . . . Recycling Unit Hacks . | . . . Scanalyzer . | . . . Garrison Access Hacks . | . . . Unauthorized Hacks 1 | . 1 . Terminals 1 | . 1 . Botnet 1 | . 1 . Fabricators . | . . . Repair Stations . | . . . Recycling Units . | . . . Scanalyzers . | . . . Garrison Access . | . . . Data Cores Recovered . | . . . Used . | . . . Hacking Detections 2 | . 2 . Full Trace Events . | . . . Feedback Events . | . . . Feedback Blocked . | . . . Robot Schematics Acquired . | . . . Robots Built . | . . . Authchips . | . . . Time . | . . . Total Robot Build Rating . | . . . Part Schematics Acquired . | . . . Parts Built . | . . . Authchips . | . . . Time . | . . . Total Part Build Rating . | . . . Part Studies Acquired . | . . . Parts Repaired . | . . . Time . | . . . Parts Recycled . | . . . Recycled Matter . | . . . Retrieved Matter . | . . . Retrieved Components . | . . . Parts Scanalyzed . | . . . Part Schematics Acquired . | . . . Parts Damaged . | . . . Bothacking | -11 -10 -10 ------------ Run | Yrd Mat Min Used RIF Installer . | . . . Robots Hacked 1 | . . 1 Non-combat . | . . . Combat 1 | . . 1 Robot Hacks Applied 1 | . . 1 parse_system 1 | . . 1 Relay Couplers Released . | . . . Fabnet Peak Effective % . | . . . Robots Rewired . | . . . Allies Hacked . | . . . Hacks Repelled . | . . . Allies | -11 -10 -10 -------- Run | Yrd Mat Min Total Allies 4 | . . 4 Largest Group 4 | . . 4 Highest-Rated Group 71 | . . 71 Highest-Rated Ally 31 | . . 31 Total Orders . | . . . Ally Attacks 16 | . . 16 Total Damage 206 | . . 206 Kills 2 | . . 2 Allies Corrupted . | . . . Allies Melted . | . . . Intel | -11 -10 -10 ------- Run | Yrd Mat Min Active Infowar (turns) 1434 | 73 1050 311 Structural 1134 | . 823 311 Seismic 300 | 73 227 . Robot Analysis Total . | . . . Derelict Logs Recovered . | . . . Drone Launches . | . . . Drone Recoveries . | . . . Exploration | -11 -10 -10 ------------- Run | Yrd Mat Min Turns Passed 1515 | 154 1050 311 Spaces Moved 785 | 102 557 126 Core 32 | 9 22 1 Treads . | . . . Legs . | . . . Wheels 753 | 93 535 125 Hover . | . . . Flight . | . . . Fastest Speed 50 | 50 100 175 Average Speed 143 | 98 142 185 Slowest Speed 1550 | 200 550 1550 Overloaded Moves . | . . . Propulsion Burnouts . | . . . Robots Hopped . | . . . Potential Cave-ins . | . . . Cave-ins Triggered . | . . . Exploration Rate (%) 36 | 5 74 31 Regions Visited 2 Branch Regions 1 Pre-discovered Areas . | . . . Known Exits Taken . | . . . Unknown Exits Taken 2 | 1 1 . Scrap Searched . | . . . Spaces Dug 38 | . 38 . Terrain Destroyed 95 | . 72 23 Melee . | . . . Projectile . | . . . AOE 95 | . 72 23 Terrain Rammed . | . . . Walls Destroyed . | . . . Machines Disabled . | . . . Actions | -11 -10 -10 --------- Run | Yrd Mat Min Total 1022 | 130 702 190 Wait 39 | . 12 27 Move 783 | 101 556 126 Hop . | . . . Pick Up 39 | 10 25 4 Fast Attach 3 | 3 . . Attach 9 | 4 4 1 Detach . | . . . Swap 16 | . 10 6 Drop 17 | . 11 6 Fire 115 | 12 84 19 Melee 1 | . . 1 Ram . | . . . Kick . | . . . Crush . | . . . Escape Stasis . | . . . Rewire . | . . . Trap . | . . . Miscellaneous . | . . . Route ------- -11/Scrapyard -10/Materials (discovered 3 exits: [*Mat x2] / [*Min]) -10/Mines History --------- Turn | Location | Event 26 | -11/Scrapyard | Discovered new exit (range 15) 155 | -11/Scrapyard | Entered Materials 300 | -10/Materials | Build established: Mutant 500 | -10/Materials | Discovered new exit (range 16) 586 | -10/Materials | Discovered new exit (range 15) 910 | -10/Materials | Core integrity fell below 50% 969 | -10/Materials | Discovered new exit (range 16) 1205 | -10/Materials | Entered Mines 1206 | -10/Mines | Met a Derelict testing a Signal Generator 1212 | -10/Mines | Found Signal Generator 1220 | -10/Mines | Met a Derelict bent on vengeance 1243 | -10/Mines | Assisted by bots powering up and referring to "LRC-V3" 1292 | -10/Mines | Received a Rocket Launcher from a helpful Derelict 1485 | -10/Mines | Assembled infested the area 1490 | -10/Mines | Assisted by a Guerilla fighting off Assembled 1514 | -10/Mines | Core integrity fell below 20% 1516 | -10/Mines | Destroyed by D-53 Grenadier with Mini Grenade Launcher Last Messages --------------- 01506_ as-72159 destroyed. 01506_ as-57580 destroyed. 01506_ as-63965 destroyed. [Achievement: Quick And Dirty] 01506_ as-07863 destroyed. 01506_ as-88132 destroyed. 01506_ as-95050 destroyed. 01506_ as-56701 destroyed. 01506_ as-16268 destroyed. 01506_ as-51039 destroyed. 01508_ as-53180 destroyed. 01509_ The unstable cave ceiling collapses. 01510_ as-68241 destroyed. 01510_ Rocket Launcher destroyed. 01511_ The unstable cave ceiling collapses. 01512_ as-62514 destroyed. 01513_ Lgt. Treads destroyed. 01515_ The unstable cave ceiling collapses. 01515_ Com. Wheel destroyed. 01515_ Sml. Laser destroyed. Map ----- +----------------------------------------------------+ | | | | | | | ???????????#############??????????????????? | | ??????????##############??????????????????? | | ??????????## ##??????????????????? | | ??????????## ##??????????????????? | | ??????????## ##??????????????????? | | ###?????## """ """ ##??????????????????? | | ? ######??## """ """? ##??????????????????? | | ?## ###??## """ """ ##??????????????????? | | ?## ##??## ##??????????????????? | | #### ###?## ###########??????????????????? | | ### ###### ##########???????????????????? | | ## ##### ##???????????????????????????? | | # ########?????????????????????? | | ### ##########????????????????????? | | #### ##### ###????????????????????? | | ###### #### ###???????????????????? | | ######## |=%!* ####??????????????????? | | #####??## ##### ##########???????????? | | ####????## ###### ######### ##????????? | | ####?????## ##?### ## ## ## ??? ##?? | | ###??????## ##?## u # # ## ?? ##?? | | ##???????## ##?## # ##?? | | ?????????## ##?### @ # ##?? | | ????????? ##?#### % ##?? | | ?????????#####??#### d ##?? | | ?????????#####???### ###?? | | ??????????????????### ####? | | ??????????????????#### # d #? | | ???????????????????### ###### # ##? | | ????????????????????## ###### < #?? | | ????????????????????## ##????# ?? | | ????????????????????## #?????? ???? | | ????????????????????## ##?????? ???? | | ????????????????????## ###??????? ???? | | ????????????????????## ###???????? # ???? | | ????????????????????## ##????????? ####???? | | ????????????????????## ?????????###?????? | | ????????????????????####??????????????????? | | ?????????????????????###??????????????????? | | ??????????????????????????????????????????? | | ??????????????????????????????????????????? | | ??????????????????????????????????????????? | | ??????????????????????????????????????????? | | ??????????????????????????????????????????? | | ??????????????????????????????????????????? | | ??????????????????????????????????????????? | | ??????????????????????????????????????????? | +----------------------------------------------------+ Best States ------------- Heat Dissipation 25 Energy Generation 18 Energy Capacity 250 Matter Stores 300 Matter Capacity 300 Sight Range 16 Terrain Scan Density 10 Evasion (%) 40 Recoil Reduction 1 Item Schematics ----------------- None Robot Schematics ------------------ None Fabricated ------------ Nothing Repaired ---------- Nothing Studied --------- None Alien Tech Used ----------------- None Achievements -------------- Quick And Dirty Challenges ------------ None Game ------ Seed RecoilImpactThruster Manual? 0 Play Time 00:17:24 Cumulative 26.2 hours Start 2025.11.12 @ 22:10:44 End 2025.11.12 @ 22:27:32 Sessions 1 Manual Loads 0 Difficulty Rogue Special Mode None Game No. 35 Rogue 35 Adventurer 0 Explorer 0 Win Type - Total 0 Types 0/0/0/0/0/0/0/0/0/0 Lore% 9 Gallery% 13 Achievement% 13 Wizard Run 0 Options --------- Layout 1 ASCII 0 Keyboard 1 Movement Arrows Keybinds 1 Fullscreen 2 Font 24/Smallcaps Map View 50x35 Zoom Use 0% Tactical HUD 1 Map Filters NONE Filters NONE Steam 1 RUN: 263e1bd6-117b-4ae3-8554-f7307ea823d8